bitfinex/quotes_SOLUSD_20241226
["timestamp","ask_amount","ask_price","bid_price","bid_amount"]
[1735177421382,8.97184246,196.4,196.3,6.1161]
[1735177421383,8.97184246,196.38,196.3,6.1161]
[1735177421575,8.97184246,196.38,196.3,15.08794246]
[1735177421757,8.97184246,196.35,196.25,6.4947]
[1735177421963,8.97184246,196.35,196.26,8.97184246]
[1735177423188,8.97184246,196.35,196.28,8.97184246]
[1735177426394,8.97184246,196.34,196.26,8.97184246]
[1735177428296,8.97184246,196.34,196.27,8.97184246]
[1735177428715,20.0,196.39,196.29,8.97184246]
[1735177429012,8.97184246,196.36,196.28,0.76410172]
[1735177429225,8.97184246,196.36,196.27,8.97184246]
[1735177429916,8.97184246,196.36,196.28,8.97184246]
[1735177430516,8.97184246,196.36,196.25,7.25879058]
[1735177430822,8.97184246,196.34,196.25,16.23063304]
[1735177431282,8.97184246,196.34,196.27,8.97184246]
[1735177432513,8.97184246,196.36,196.27,9.73590475]
[1735177432822,3.64612031,196.42,196.29,8.97184246]
[1735177432997,8.97184246,196.38,196.29,8.97184246]
[1735177436405,8.97184246,196.36,196.29,8.97184246]
[1735177438409,8.97184246,196.36,196.28,8.97184246]
[1735177439587,8.97184246,196.36,196.27,0.76406229]
[1735177439588,8.97184246,196.36,196.29,8.97184246]
[1735177441385,8.97184246,196.36,196.28,8.97184246]
[1735177443288,8.97184246,196.35,196.28,8.97184246]
[1735177443490,8.97184246,196.34,196.27,8.97184246]
[1735177444420,8.97184246,196.35,196.28,8.97184246]
[1735177444625,8.97184246,196.35,196.26,0.76410047]
[1735177444827,20.0,196.35,196.28,8.97184246]
[1735177445008,20.0,196.35,196.29,8.97184246]
[1735177445927,20.0,196.35,196.28,8.97184246]
[1735177449221,20.0,196.37,196.26,0.76403873]
[1735177449531,8.97184246,196.35,196.28,8.97184246]
[1735177449919,8.97184246,196.35,196.26,0.76403873]
[1735177449920,28.97184246,196.37,196.29,8.97184246]
[1735177450227,28.97184246,196.37,196.3,8.97184246]
[1735177450435,8.97184246,196.36,196.29,8.97184246]
[1735177450613,28.97184246,196.37,196.29,8.97184246]
[1735177457753,28.97184246,196.37,196.28,0.76398605]
[1735177458251,28.97184246,196.37,196.3,8.97184246]
[1735177460558,8.97184246,196.37,196.3,8.97184246]
[1735177461563,8.97184246,196.37,196.29,32.74872646]
[1735177462164,8.97184246,196.36,196.27,0.763965]
[1735177462460,8.97184246,196.35,196.28,8.97184246]
[1735177463854,8.97184246,196.36,196.28,8.97184246]
[1735177464752,8.97184246,196.35,196.28,8.97184246]
[1735177466258,8.97184246,196.36,196.28,8.97184246]
[1735177467037,8.97184246,196.36,196.29,8.47184246]
[1735177470135,20.0,196.4,196.29,8.47184246]
[1735177470337,8.97184246,196.38,196.29,8.47184246]
[1735177470549,8.97184246,196.38,196.27,23.776884]
[1735177470749,8.97184246,196.38,196.3,8.97184246]
[1735177473351,28.97184246,196.4,196.32,8.97184246]
[1735177475266,8.97184246,196.39,196.32,8.97184246]
[1735177477160,8.97184246,196.39,196.31,8.97184246]
[1735177479167,20.0,196.4,196.33,8.97184246]
[1735177479367,8.97184246,196.44,196.37,8.97184246]
[1735177479567,9.48636127,196.47,196.37,8.97184246]
[1735177479764,8.97184246,196.46,196.39,8.97184246]
[1735177481073,8.97184246,196.45,196.38,8.97184246]
[1735177482073,8.97184246,196.45,196.36,0.76357357]
[1735177482262,8.97184246,196.46,196.39,8.97184246]
[1735177482866,8.97184246,196.47,196.39,8.97184246]
[1735177485160,8.97184246,196.47,196.4,8.97184246]
[1735177486746,8.97184246,196.47,196.38,8.97184246]
[1735177486947,8.97184246,196.45,196.38,8.97184246]
[1735177487151,8.97184246,196.45,196.36,8.97184246]
[1735177487450,8.97184246,196.43,196.35,8.97184246]
[1735177487653,8.97184246,196.42,196.35,8.97184246]
[1735177487960,8.97184246,196.41,196.31,8.1317]
[1735177488158,8.97184246,196.41,196.32,8.97184246]
[1735177488361,8.97184246,196.41,196.33,8.97184246]
[1735177488965,8.97184246,196.4,196.32,8.97184246]
[1735177490778,8.97184246,196.4,196.31,8.1317]
[1735177490974,8.97184246,196.39,196.32,8.97184246]
[1735177492388,28.97184246,196.4,196.33,8.97184246]
[1735177493164,20.0,196.4,196.33,8.97184246]
[1735177493357,20.0,196.4,196.34,8.97184246]
[1735177495678,20.0,196.4,196.31,8.1317]
[1735177495679,28.97184246,196.4,196.33,8.97184246]
[1735177500595,28.97184246,196.43,196.36,8.97184246]
[1735177500976,8.97184246,196.42,196.35,8.97184246]
[1735177501886,20.0,196.41,196.31,6.4746]
[1735177502075,20.0,196.4,196.31,6.4746]
[1735177502276,20.0,196.4,196.34,8.97184246]
[1735177503211,20.0,196.4,196.36,8.97184246]
[1735177504781,8.97184246,196.45,196.38,8.97184246]
[1735177506207,8.97184246,196.44,196.36,8.97184246]
[1735177507002,8.97184246,196.45,196.37,8.97184246]
[1735177507500,20.0,196.44,196.39,8.97184246]
[1735177507696,10.60074246,196.49,196.41,8.97184246]
[1735177507897,8.97184246,196.49,196.41,8.97184246]
[1735177508205,8.97184246,196.5,196.43,8.97184246]
[1735177508384,8.97184246,196.5,196.42,8.97184246]
[1735177509281,20.06243908,196.53,196.43,8.97184246]
[1735177509486,20.0,196.5,196.44,8.97184246]
[1735177512525,20.0,196.5,196.45,8.97184246]
[1735177513020,20.0,196.5,196.46,8.97184246]
[1735177513225,8.97184246,196.53,196.46,8.97184246]
[1735177513792,8.97184246,196.53,196.45,8.97184246]
[1735177515803,21.6391,196.54,196.48,8.97184246]
[1735177515998,20.0,196.52,196.49,8.97184246]
[1735177516198,8.97184246,196.58,196.5,8.97184246]
[1735177516393,8.97184246,196.58,196.51,8.97184246]
[1735177516622,8.97184246,196.58,196.5,8.97184246]
[1735177516926,8.97184246,196.57,196.49,8.97184246]
[1735177517510,8.97184246,196.57,196.45,0.76330691]
[1735177517511,8.97184246,196.55,196.45,0.76330691]
[1735177517698,8.97184246,196.53,196.46,8.97184246]
[1735177518195,8.97184246,196.54,196.46,8.97184246]
[1735177518911,20.0,196.54,196.47,8.97184246]
[1735177519417,20.0,196.54,196.49,8.97184246]
[1735177519599,8.97184246,196.57,196.49,8.97184246]
[1735177519824,20.0,196.54,196.49,8.97184246]
[1735177520124,10.61094246,196.59,196.52,8.97184246]
[1735177520823,8.97184246,196.59,196.52,8.97184246]
[1735177521324,8.97184246,196.58,196.51,8.97184246]
[1735177521529,8.97184246,196.59,196.51,8.97184246]
[1735177521828,28.97184246,196.59,196.51,8.97184246]
[1735177521993,20.0,196.59,196.52,8.97184246]
[1735177522194,6.2148,196.62,196.54,8.97184246]
[1735177522195,8.97184246,196.62,196.54,8.97184246]
[1735177523205,1.5273,196.64,196.55,8.97184246]
[1735177523409,10.49914246,196.64,196.57,8.97184246]
[1735177523924,8.97184246,196.64,196.56,8.97184246]
[1735177524098,8.97184246,196.64,196.57,8.97184246]
[1735177525117,1.5273,196.69,196.59,8.97184246]
[1735177525316,8.97184246,196.68,196.59,8.97184246]
[1735177525918,1.5273,196.69,196.58,29.777784]
[1735177526116,2.08048355,196.73,196.66,8.97184246]
[1735177526309,1.5273,196.76,196.6,35.88736984]
[1735177526310,1.5273,196.76,196.68,8.97184246]
[1735177526507,10.49914246,196.76,196.68,8.97184246]
[1735177527224,8.97184246,196.74,196.65,8.97184246]
[1735177527415,12.706,196.76,196.65,8.97184246]
[1735177527607,20.0,196.72,196.67,8.97184246]
[1735177529321,8.97184246,196.75,196.67,8.97184246]
[1735177535025,8.97184246,196.69,196.64,1.527]
[1735177535335,8.97184246,196.69,196.61,8.97184246]
[1735177537629,0.12549,196.68,196.59,1.665]
[1735177537931,8.97184246,196.65,196.59,1.665]
[1735177538127,20.0,196.66,196.59,10.63684246]
[1735177538429,20.0,196.65,196.59,10.63684246]
[1735177541837,3.61192671,196.74,196.64,8.97184246]
[1735177542027,6.117,196.78,196.66,8.97184246]
[1735177542234,6.117,196.78,196.68,8.97184246]
[1735177542429,8.97184246,196.76,196.68,8.97184246]
[1735177542638,8.97184246,196.8,196.72,8.97184246]
[1735177544321,20.0,196.77,196.72,8.97184246]
[1735177546442,12.7006,196.84,196.74,8.97184246]
[1735177546637,8.97184246,196.83,196.74,8.97184246]
[1735177548431,8.97184246,196.83,196.76,8.97184246]
[1735177550746,8.97184246,196.79,196.75,6.1542]
[1735177551133,8.97184246,196.77,196.71,8.97184246]
[1735177552359,20.0,196.79,196.71,8.97184246]
[1735177552644,8.97184246,196.78,196.71,8.97184246]
[1735177554847,8.97184246,196.78,196.7,15.22954246]
[1735177555951,20.0,196.8,196.72,8.97184246]
[1735177556131,28.97184246,196.8,196.73,8.97184246]
[1735177558050,28.97184246,196.8,196.72,8.97184246]
[1735177558249,8.97184246,196.79,196.71,8.97184246]
[1735177559055,8.97184246,196.79,196.7,6.2577]
[1735177559250,8.97184246,196.77,196.7,15.22954246]
[1735177560850,8.97184246,196.78,196.7,15.22954246]
[1735177562557,8.97184246,196.76,196.7,6.2577]
[1735177562870,12.7,196.85,196.75,8.97184246]
[1735177563034,8.97184246,196.86,196.78,8.97184246]
[1735177563243,8.97184246,196.86,196.79,8.97184246]
[1735177563544,8.97184246,196.87,196.79,8.97184246]
[1735177564164,8.97184246,196.87,196.76,7.776]
[1735177564165,13.95134693,196.87,196.8,13.95134693]
[1735177564456,13.95134693,196.87,196.79,13.95134693]
[1735177564656,20.0,196.84,196.79,13.95134693]
[1735177565955,13.95134693,196.89,196.81,13.95134693]
[1735177566146,13.95134693,196.89,196.82,13.95134693]
[1735177567966,13.95134693,196.86,196.79,13.95134693]
[1735177568159,13.95134693,196.85,196.78,13.95134693]
[1735177568861,13.95134693,196.86,196.78,13.95134693]
[1735177572168,13.95134693,196.88,196.8,13.95134693]
[1735177572345,20.0,196.85,196.78,0.76214007]
[1735177572551,20.0,196.85,196.79,13.95134693]
[1735177572963,12.6936,196.95,196.84,13.95134693]
[1735177573163,13.95134693,196.93,196.85,13.95134693]
[1735177573561,14.2432,196.99,196.86,13.95134693]
[1735177573758,14.2432,196.99,196.84,1.5307]
[1735177573759,13.95134693,196.95,196.88,13.95134693]
[1735177574065,13.95134693,196.97,196.9,13.95134693]
[1735177574252,13.95134693,196.97,196.91,6.3702]
[1735177575661,14.69508945,197.02,196.91,6.3702]
[1735177575662,13.95134693,196.98,196.91,20.32154693]
[1735177575851,14.69508945,197.02,196.91,6.3702]
[1735177575852,13.95134693,196.97,196.91,6.3702]
[1735177576667,13.95134693,196.99,196.91,20.32154693]
[1735177576880,13.95134693,197.01,196.94,13.95134693]
[1735177577080,12.687,197.06,196.94,13.95134693]
[1735177577247,12.687,197.06,196.96,13.95134693]
[1735177577450,13.95134693,197.03,196.96,13.95134693]
[1735177577751,13.95134693,197.02,196.95,13.95134693]
[1735177579386,13.95134693,197.01,196.94,13.95134693]
[1735177579557,13.95134693,197.01,196.93,13.95134693]
[1735177579881,13.95134693,197.02,196.95,13.95134693]
[1735177580360,13.95134693,197.06,196.98,13.95134693]
[1735177580771,13.95134693,197.05,196.97,13.95134693]
[1735177580984,13.95134693,197.04,196.96,13.95134693]
[1735177581192,13.95134693,197.05,196.97,13.95134693]
[1735177581484,13.95134693,197.07,197.0,20.49624693]
[1735177581777,13.95134693,197.08,197.01,15.47274693]
[1735177582081,13.95134693,197.09,197.02,13.95134693]
[1735177582871,13.95134693,197.08,197.01,1.5214]
[1735177583068,13.95134693,197.09,197.01,15.47274693]
[1735177585160,13.95134693,197.07,197.01,1.5214]
[1735177585471,13.95134693,197.08,197.01,1.5214]
[1735177586398,13.95134693,197.06,197.01,1.5214]
[1735177586577,13.95134693,197.05,197.0,6.5449]
[1735177586784,13.95134693,197.06,197.0,6.5449]
[1735177587086,13.95134693,197.08,197.0,20.49624693]
[1735177587284,13.95134693,197.08,197.01,13.95134693]
[1735177589382,13.95134693,197.09,197.01,13.95134693]
[1735177590497,1.5038,197.22,197.07,13.95134693]
[1735177590696,13.95134693,197.17,197.09,1.5214]
[1735177591003,13.95134693,197.17,197.1,13.95134693]
[1735177591498,13.95134693,197.19,197.12,13.95134693]
[1735177591701,1.5038,197.27,197.14,13.95134693]
[1735177591903,13.95134693,197.22,197.14,13.95134693]
[1735177592284,1.5038,197.27,197.15,13.95134693]
[1735177592510,13.95134693,197.24,197.18,6.5449]
[1735177593382,13.95134693,197.22,197.18,6.5449]
[1735177593698,12.6728,197.28,197.18,6.5449]
[1735177593699,13.95134693,197.24,197.18,6.5449]
[1735177593904,13.95134693,197.23,197.18,6.5449]
[1735177594791,13.95134693,197.22,197.18,6.5449]
[1735177595199,33.95134693,197.23,197.18,6.5449]
[1735177595705,13.95134693,197.22,197.18,6.5449]
[1735177600005,13.95134693,197.2,197.13,20.34324693]
[1735177604215,13.95134693,197.18,197.13,6.3919]
[1735177604517,13.95134693,197.2,197.13,6.3919]
[1735177604905,13.95134693,197.2,197.13,20.34324693]
[1735177605298,13.95134693,197.21,197.14,13.95134693]
[1735177605615,13.95134693,197.23,197.16,13.95134693]
[1735177606201,12.6734,197.27,197.16,13.95134693]
[1735177606202,13.95134693,197.27,197.19,13.95134693]
[1735177608621,13.95134693,197.27,197.18,6.3919]
[1735177608622,13.95134693,197.25,197.18,6.3919]
[1735177608818,13.95134693,197.23,197.18,6.3919]
[1735177609012,12.6717,197.29,197.18,6.3919]
[1735177609217,13.95134693,197.24,197.18,6.3919]
[1735177610524,13.95134693,197.25,197.18,6.3919]
[1735177610923,13.95134693,197.25,197.18,20.34324693]
[1735177611403,13.95134693,197.27,197.2,13.95134693]
[1735177612302,13.95134693,197.26,197.19,13.95134693]
[1735177612721,12.6709,197.31,197.18,20.34324693]
[1735177612722,13.95134693,197.25,197.18,20.34324693]
[1735177612913,13.95134693,197.24,197.18,6.3919]
[1735177613627,13.95134693,197.25,197.18,20.34324693]
[1735177616431,13.95134693,197.24,197.18,6.3919]
[1735177617218,13.95134693,197.25,197.18,20.34324693]
[1735177618225,13.95134693,197.26,197.18,20.34324693]
[1735177618815,13.95134693,197.26,197.19,13.95134693]
[1735177619220,12.6696,197.33,197.21,13.95134693]
[1735177619221,13.95134693,197.28,197.21,13.95134693]
[1735177620730,13.95134693,197.26,197.2,13.95134693]
[1735177621819,13.95134693,197.25,197.18,20.34324693]
[1735177622935,13.95134693,197.26,197.19,13.95134693]
[1735177623330,20.54754693,197.4,197.18,6.3919]
[1735177623331,6.5962,197.4,197.18,6.3919]
[1735177623525,13.95134693,197.33,197.27,8.2328]
[1735177623728,13.95134693,197.34,197.27,22.18414693]
[1735177624437,13.95134693,197.33,197.27,8.2328]
[1735177624636,13.95134693,197.34,197.27,22.18414693]
[1735177625838,13.95134693,197.35,197.28,13.95134693]
[1735177626143,26.61594693,197.4,197.27,22.18414693]
[1735177626144,13.95134693,197.33,197.27,22.18414693]
[1735177626325,13.95134693,197.32,197.27,8.2328]
[1735177627431,0.12549,197.39,197.27,8.2328]
[1735177627636,13.95134693,197.33,197.27,8.2328]
[1735177628837,13.95134693,197.32,197.27,8.2328]
[1735177629033,13.95134693,197.31,197.27,8.2328]
[1735177630016,13.95134693,197.3,197.27,8.2328]
[1735177630230,13.95134693,197.28,197.22,8.2423]
[1735177630436,13.95134693,197.27,197.22,8.2423]
[1735177630735,0.12549,197.32,197.22,8.2423]
[1735177630911,13.95134693,197.28,197.22,8.2423]
[1735177631239,13.95134693,197.38,197.3,1.6428]
[1735177631443,13.95134693,197.38,197.31,13.95134693]
[1735177632343,13.95134693,197.38,197.3,1.6428]
[1735177636017,0.12549,197.41,197.31,6.5995]
[1735177636231,13.95134693,197.38,197.31,6.5995]
[1735177636438,13.95134693,197.36,197.31,6.5995]
[1735177640155,8.88474251,197.36,197.31,6.5995]
[1735177641969,8.88474251,197.34,197.31,6.5995]
[1735177642172,8.88474251,197.36,197.31,6.5995]
[1735177644153,8.88474251,197.34,197.31,6.5995]
[1735177645761,8.88474251,197.32,197.26,7.8169]
[1735177645957,8.88474251,197.29,197.26,7.8169]
[1735177646762,8.88474251,197.29,197.26,6.181]
[1735177647683,8.88474251,197.27,197.21,16.70164251]
[1735177648645,8.88474251,197.27,197.21,7.8169]
[1735177649243,8.88474251,197.24,197.21,7.8169]
[1735177649566,8.88474251,197.22,197.21,7.8169]
[1735177650155,13.90068186,197.23,197.21,7.8169]
[1735177650471,12.6739,197.26,197.16,21.71758186]
[1735177650655,5.91894621,197.35,197.23,7.8169]
[1735177650970,13.90068186,197.33,197.25,13.90068186]
[1735177651267,13.90068186,197.34,197.26,13.90068186]
[1735177651476,13.90068186,197.34,197.28,13.90068186]
[1735177651769,13.90068186,197.36,197.28,13.90068186]
[1735177651946,13.90068186,197.36,197.3,13.90068186]
[1735177653057,13.90068186,197.36,197.28,13.90068186]
[1735177655361,13.90068186,197.36,197.3,13.90068186]
[1735177655849,13.90068186,197.36,197.28,13.90068186]
[1735177660547,13.90068186,197.34,197.26,13.90068186]
[1735177660952,13.90068186,197.32,197.24,13.90068186]
[1735177661154,13.90068186,197.3,197.23,7.8169]
[1735177661566,13.90068186,197.29,197.23,7.8169]
[1735177661972,13.90068186,197.27,197.19,13.90068186]
[1735177666370,13.90068186,197.25,197.18,7.9007]
[1735177667406,13.90068186,197.25,197.18,6.2959]
[1735177667704,13.90068186,197.21,197.14,13.90068186]
[1735177667987,13.90068186,197.23,197.15,13.90068186]
[1735177668150,13.90068186,197.22,197.14,14.66131965]
[1735177668356,13.90068186,197.21,197.13,7.9007]
[1735177668660,13.90068186,197.21,197.13,21.80138186]
[1735177668860,13.90068186,197.2,197.13,21.80138186]
[1735177669785,13.90068186,197.19,197.13,7.9007]
[1735177670088,13.90068186,197.16,197.09,13.90068186]
[1735177670766,13.90068186,197.17,197.1,13.90068186]
[1735177677280,13.90068186,197.17,197.08,21.94168186]
[1735177680408,13.90068186,197.17,197.1,13.90068186]
[1735177680703,33.90068186,197.19,197.1,13.90068186]
[1735177681211,12.6712,197.3,197.16,13.90068186]
[1735177681420,13.90068186,197.29,197.2,13.90068186]
[1735177682197,13.90068186,197.29,197.22,13.90068186]
[1735177682393,7.96196127,197.32,197.24,13.90068186]
[1735177682791,7.96196127,197.32,197.25,7.1507554]
[1735177683214,7.96196127,197.32,197.28,13.90068186]
[1735177684614,13.90068186,197.36,197.28,13.90068186]
[1735177684789,12.6575,197.51,197.34,13.90068186]
[1735177684979,13.90068186,197.43,197.34,13.90068186]
[1735177685399,13.90068186,197.41,197.34,13.90068186]
[1735177685706,5.89489621,197.5,197.34,13.90068186]
[1735177685908,7.96196127,197.51,197.38,13.90068186]
[1735177686097,13.90068186,197.46,197.38,13.90068186]
[1735177686609,13.90068186,197.46,197.38,14.66038687]
[1735177686986,13.90068186,197.44,197.37,6.5795]
[1735177687190,13.90068186,197.42,197.37,6.5795]
[1735177690707,13.90068186,197.4,197.32,20.48018186]
[1735177694902,13.90068186,197.38,197.32,6.5795]
[1735177695097,13.90068186,197.36,197.32,6.5795]
[1735177695297,13.90068186,197.35,197.27,21.24022007]
[1735177695499,13.90068186,197.35,197.28,13.90068186]
[1735177695702,13.90068186,197.36,197.28,13.90068186]
[1735177696706,13.90068186,197.32,197.27,6.5795]
[1735177697110,13.90068186,197.31,197.27,6.5795]
[1735177698227,13.90068186,197.32,197.27,6.5795]
[1735177700528,13.90068186,197.32,197.18,0.76033364]
[1735177700529,13.90068186,197.29,197.22,6.5795]
[1735177701607,0.12549,197.35,197.22,6.5795]
[1735177701608,13.90068186,197.27,197.22,6.5795]
[1735177702021,13.90068186,197.28,197.22,6.5795]
[1735177703332,13.90068186,197.27,197.22,6.5795]
[1735177703837,13.90068186,197.24,197.17,6.1984]
[1735177704136,13.90068186,197.25,197.17,20.09908186]
[1735177704709,13.90068186,197.24,197.17,20.09908186]
[1735177705125,13.90068186,197.24,197.17,6.1984]
[1735177706129,13.90068186,197.25,197.18,13.90068186]
[1735177706324,13.90068186,197.24,197.17,20.09908186]
[1735177706533,13.90068186,197.24,197.17,6.1984]
[1735177706728,13.90068186,197.23,197.17,6.1984]
[1735177706924,13.90068186,197.2,197.13,6.1984]
[1735177707311,13.90068186,197.18,197.13,6.1984]
[1735177707518,13.90068186,197.19,197.13,6.1984]
[1735177710239,13.90068186,197.18,197.13,6.1984]
[1735177710627,13.90068186,197.17,197.13,6.1984]
[1735177711533,13.90068186,197.18,197.13,6.1984]
[1735177711741,13.90068186,197.2,197.13,6.1984]
[1735177714652,13.90068186,197.2,197.13,20.09908186]
[1735177715224,13.90068186,197.18,197.13,6.1984]
[1735177719565,12.6775,197.2,197.13,6.1984]
[1735177719767,13.90068186,197.2,197.13,20.09908186]
[1735177719942,20.0,197.21,197.13,20.09908186]
[1735177720139,13.90068186,197.22,197.15,13.90068186]
[1735177721571,12.6717,197.29,197.17,13.90068186]
[1735177721882,7.6947,197.37,197.21,23.776884]
[1735177722057,13.90068186,197.33,197.26,13.90068186]
[1735177722569,13.90068186,197.35,197.28,13.90068186]
[1735177722947,13.90068186,197.35,197.26,13.90068186]
[1735177725057,13.90068186,197.33,197.26,13.90068186]
[1735177726574,13.90068186,197.35,197.26,13.90068186]
[1735177729474,13.90068186,197.35,197.27,7.8194]
[1735177731280,13.90068186,197.33,197.27,7.8194]
[1735177732678,13.90068186,197.29,197.27,6.2734]
[1735177733552,13.90068186,197.29,197.22,7.8194]
[1735177733758,13.90068186,197.27,197.22,7.8194]
[1735177738686,13.90068186,197.27,197.22,6.2734]
[1735177739487,13.90068186,197.27,197.19,13.90068186]
[1735177739685,2.06159526,197.33,197.17,21.72008186]
[1735177739686,13.90068186,197.25,197.17,21.72008186]
[1735177739986,33.90068186,197.25,197.17,21.72008186]
[1735177740160,33.90068186,197.25,197.19,13.90068186]
[1735177740665,20.0,197.25,197.18,13.90068186]
[1735177742170,13.90068186,197.26,197.18,13.90068186]
[1735177742560,13.90068186,197.26,197.19,13.90068186]
[1735177743582,2.05772363,197.36,197.27,20.0]
[1735177743752,7.96196127,197.42,197.27,20.0]
[1735177743753,7.96196127,197.42,197.36,30.060284]
[1735177743957,7.96196127,197.42,197.4,13.90068186]
[1735177744152,7.96196127,197.42,197.37,0.75974849]
[1735177744476,7.96196127,197.42,197.36,20.18408186]
[1735177744786,7.96196127,197.42,197.38,13.90068186]
[1735177745163,13.90068186,197.47,197.38,13.90068186]
[1735177745370,13.90068186,197.45,197.36,20.18408186]
[1735177745958,13.90068186,197.43,197.3,7.6386]
[1735177746165,13.90068186,197.43,197.33,13.90068186]
[1735177746653,1.6065,197.46,197.33,13.90068186]
[1735177746858,20.0,197.45,197.39,13.90068186]
[1735177747177,13.90068186,197.48,197.39,13.90068186]
[1735177748181,22.18813567,197.48,197.39,22.18813567]
[1735177748383,20.0,197.45,197.39,22.18813567]
[1735177749080,22.18813567,197.48,197.39,22.18813567]
[1735177750570,20.0,197.45,197.37,22.18813567]
[1735177751781,20.0,197.43,197.37,22.18813567]
[1735177752286,20.0,197.43,197.35,22.18813567]
[1735177752486,20.0,197.41,197.35,22.18813567]
[1735177754183,20.0,197.43,197.39,22.18813567]
[1735177754376,20.0,197.43,197.37,22.18813567]
[1735177755594,20.0,197.39,197.3,8.39849787]
[1735177755890,22.18813567,197.38,197.31,22.18813567]
[1735177756092,22.18813567,197.4,197.33,22.18813567]
[1735177756783,22.18813567,197.4,197.3,6.0306]
[1735177756987,22.18813567,197.4,197.32,22.18813567]
[1735177758601,22.18813567,197.38,197.3,28.21873567]
[1735177760803,22.18813567,197.38,197.3,22.18813567]
[1735177761000,22.18813567,197.36,197.28,22.18813567]
[1735177761304,22.18813567,197.34,197.26,22.18813567]
[1735177761891,20.0,197.33,197.28,22.18813567]
[1735177764708,20.0,197.33,197.26,22.18813567]
[1735177765601,20.0,197.31,197.24,22.18813567]
[1735177765904,22.18813567,197.3,197.22,22.18813567]
[1735177767507,22.18813567,197.32,197.24,22.18813567]
[1735177767713,22.18813567,197.34,197.26,22.18813567]
[1735177768306,20.0,197.31,197.26,22.18813567]
[1735177769399,20.0,197.31,197.24,22.18813567]
[1735177769716,20.0,197.29,197.24,22.18813567]
[1735177770103,20.0,197.29,197.22,22.18813567]
[1735177770309,20.0,197.29,197.22,13.89151627]
[1735177781828,20.0,197.27,197.2,13.89151627]
[1735177782018,13.89151627,197.26,197.18,13.89151627]
[1735177783131,20.0,197.23,197.16,13.89151627]
[1735177783316,33.89151627,197.21,197.14,13.89151627]
[1735177783632,13.89151627,197.26,197.19,13.89151627]
[1735177783827,20.24311627,197.27,197.19,13.89151627]
[1735177785111,13.89151627,197.26,197.19,13.89151627]
[1735177786314,6.3516,197.27,197.19,13.89151627]
[1735177788118,14.01700627,197.26,197.17,13.89151627]
[1735177788317,20.0,197.23,197.17,13.89151627]
[1735177788524,13.89151627,197.22,197.15,13.89151627]
[1735177789428,13.89151627,197.22,197.13,13.89151627]
[1735177790544,13.89151627,197.22,197.15,13.89151627]
[1735177790848,13.89151627,197.24,197.17,13.89151627]
[1735177791019,13.89151627,197.26,197.17,13.89151627]
[1735177792714,33.89151627,197.24,197.15,13.89151627]
[1735177793037,13.89151627,197.22,197.13,13.89151627]
[1735177794736,13.89151627,197.22,197.15,13.89151627]
[1735177794926,33.89151627,197.24,197.17,13.89151627]
[1735177795440,20.0,197.23,197.15,13.89151627]
[1735177795623,13.89151627,197.22,197.15,13.89151627]
[1735177801636,20.0,197.23,197.17,13.89151627]
[1735177802133,6.5436,197.32,197.21,13.89151627]
[1735177802335,13.89151627,197.31,197.23,13.89151627]
[1735177802954,8.0863,197.38,197.25,13.89151627]
[1735177803134,13.89151627,197.36,197.27,13.89151627]
[1735177804461,13.89151627,197.36,197.29,13.89151627]
[1735177808341,20.0,197.33,197.27,13.89151627]
[1735177808545,13.89151627,197.34,197.25,13.89151627]
[1735177808952,13.79107449,197.34,197.25,13.89151627]
[1735177810167,13.79107449,197.34,197.27,13.89151627]
[1735177811459,20.0,197.34,197.29,13.89151627]
[1735177811870,20.0,197.34,197.27,13.89151627]
[1735177812162,33.89151627,197.34,197.27,13.89151627]
[1735177812461,33.89151627,197.34,197.25,13.89151627]
[1735177815244,33.89151627,197.34,197.27,13.89151627]
[1735177817461,21.5427,197.38,197.29,13.89151627]
[1735177817663,20.0,197.36,197.31,13.89151627]
[1735177817846,1.5427,197.38,197.31,13.89151627]
[1735177818041,26.55561627,197.41,197.31,13.89151627]
[1735177818448,26.55561627,197.41,197.22,25.352]
[1735177818449,13.89151627,197.37,197.29,13.89151627]
[1735177818648,13.89151627,197.35,197.27,13.89151627]
[1735177820053,14.01700627,197.4,197.29,13.89151627]
[1735177820054,13.89151627,197.37,197.29,13.89151627]
[1735177821872,12.664,197.41,197.26,0.76007327]
[1735177822067,13.89151627,197.37,197.29,13.89151627]
[1735177822867,13.89151627,197.39,197.31,13.89151627]
[1735177823365,13.89151627,197.41,197.33,13.89151627]
[1735177823750,6.5366,197.43,197.31,0.75999666]
[1735177823751,13.89151627,197.43,197.35,13.89151627]
[1735177824166,13.89151627,197.44,197.37,13.89151627]
[1735177825566,13.89151627,197.44,197.35,13.89151627]
[1735177830264,13.89151627,197.44,197.37,13.89151627]
[1735177830752,20.0,197.43,197.37,13.89151627]
[1735177831680,13.89151627,197.46,197.37,13.89151627]